bitfinex/quotes_SOLUSD_20260202
["timestamp","ask_amount","ask_price","bid_price","bid_amount"]
[1770049914569,13.0494594,105.25,105.22,9.50387707]
[1770049914765,13.0494594,105.25,105.21,13.72568082]
[1770049914948,13.0494594,105.25,105.21,12.89755982]
[1770049915153,4.3732659,105.25,105.22,9.50377304]
[1770049915968,4.3732659,105.25,105.22,22.40133286]
[1770049916668,22.54981636,105.26,105.22,22.40133286]
[1770049916876,13.0494594,105.28,105.24,12.89755982]
[1770049917069,4.3732659,105.28,105.24,12.89755982]
[1770049917272,13.0494594,105.28,105.24,4.22136632]
[1770049917572,13.0494594,105.28,105.24,12.89755982]
[1770049919373,22.54808585,105.28,105.24,12.89755982]
[1770049919675,13.0494594,105.28,105.24,22.39952589]
[1770049920171,22.54807595,105.28,105.24,13.72333239]
[1770049920370,13.0494594,105.27,105.24,4.22136632]
[1770049920753,13.0494594,105.27,105.24,13.72342488]
[1770049920954,4.3732659,105.27,105.24,13.72342488]
[1770049921150,13.0494594,105.27,105.24,4.22136632]
[1770049921552,4.3732659,105.27,105.24,4.22136632]
[1770049921750,13.0494594,105.27,105.24,4.22136632]
[1770049922257,4.3732659,105.27,105.24,4.22136632]
[1770049922460,4.3732659,105.27,105.24,13.72333534]
[1770049922962,13.87188245,105.28,105.24,13.72333534]
[1770049923180,22.54807595,105.28,105.24,13.72333534]
[1770049923388,13.0494594,105.27,105.24,4.22136632]
[1770049923684,4.27527085,105.3,105.23,13.72433461]
[1770049923865,4.27527085,105.3,105.23,4.22136632]
[1770049923866,8.6761935,105.26,105.23,4.22136632]
[1770049925280,8.6761935,105.24,105.21,4.22136632]
[1770049925985,18.17832119,105.24,105.21,4.22136632]
[1770049926684,22.37072853,105.25,105.21,13.72612945]
[1770049926890,12.86907994,105.25,105.21,22.40232295]
[1770049927187,22.3703228,105.25,105.21,13.72612945]
[1770049928087,12.86907994,105.25,105.21,18.18095663]
[1770049928277,18.1758541,105.27,105.23,4.22136632]
[1770049928472,18.1758541,105.27,105.23,12.89755982]
[1770049928785,22.36772855,105.28,105.24,12.89755982]
[1770049929384,4.19288644,105.3,105.26,12.89755982]
[1770049929687,12.86907994,105.3,105.26,12.89755982]
[1770049929884,22.36587225,105.3,105.26,13.72136404]
[1770049930077,12.86907994,105.29,105.25,12.89755982]
[1770049930285,12.86907994,105.29,105.25,13.72239163]
[1770049931489,22.36693182,105.29,105.25,13.72239163]
[1770049932085,12.86907994,105.28,105.25,4.22136632]
[1770049932774,12.86907994,105.27,105.23,13.7239615]
[1770049932981,8.6761935,105.28,105.25,4.22136632]
[1770049934296,18.17502588,105.28,105.25,4.22136632]
[1770049935193,22.36791232,105.28,105.24,22.39955333]
[1770049935596,4.19288644,105.28,105.24,22.39955333]
[1770049935801,22.36623703,105.3,105.26,12.89755982]
[1770049935969,13.69004353,105.3,105.26,12.89755982]
[1770049936170,22.36623703,105.3,105.26,12.89755982]
[1770049936989,22.36623703,105.3,105.26,13.72160687]
[1770049937880,22.36623703,105.3,105.26,4.22136632]
[1770049938289,12.86907994,105.29,105.24,4.22136632]
[1770049938480,12.86907994,105.27,105.23,22.40009827]
[1770049938803,12.86907994,105.25,105.21,13.72612187]
[1770049939498,8.6761935,105.25,105.22,4.22136632]
[1770049939801,12.86907994,105.26,105.22,4.22136632]
[1770049940593,22.36977035,105.26,105.22,4.22136632]
[1770049940788,4.19288644,105.25,105.21,13.76477662]
[1770049940995,12.86907994,105.25,105.21,4.26060273]
[1770049941193,8.6761935,105.25,105.21,22.44154777]
[1770049941400,8.6761935,105.26,105.23,4.26060273]
[1770049941578,12.86907994,105.26,105.23,4.26060273]
[1770049941991,18.17605023,105.27,105.23,12.93679623]
[1770049942498,22.36793106,105.28,105.23,22.43928425]
[1770049942677,8.6761935,105.27,105.23,22.43928425]
[1770049942879,8.6761935,105.26,105.23,4.26060273]
[1770049943484,4.19288644,105.23,105.19,13.96678399]
[1770049943702,12.86907994,105.24,105.2,13.7660906]
[1770049945702,22.37126302,105.24,105.2,13.7660906]
[1770049945906,12.86907994,105.24,105.2,13.7660906]
[1770049947190,8.6761935,105.24,105.21,4.26060273]
[1770049947393,8.6761935,105.24,105.2,22.4422841]
[1770049947394,12.86907994,105.24,105.2,22.4422841]
[1770049948110,12.86907994,105.24,105.2,13.7660906]
[1770049948408,8.6761935,105.23,105.2,4.26060273]
[1770049948701,8.6761935,105.23,105.2,13.76630565]
[1770049948905,22.37177711,105.24,105.2,13.76630565]
[1770049950103,8.6761935,105.22,105.19,0.2]
[1770049950281,8.6761935,105.21,105.19,0.2]
[1770049950489,8.6761935,105.2,105.19,0.2]
[1770049951120,4.19288644,105.22,105.19,0.2]
[1770049951293,8.6761935,105.21,105.19,0.2]
[1770049951799,12.86907994,105.21,105.19,0.2]
[1770049952296,8.6761935,105.2,105.19,0.15764761]
[1770049952505,8.6761935,105.2,105.19,0.00010876]
[1770049952506,12.82715107,105.2,105.19,0.00010876]
[1770049953294,12.82715107,105.2,105.17,9.5079356]
[1770049954208,8.6761935,105.2,105.17,13.76853833]
[1770049954415,8.6761935,105.22,105.19,13.76719452]
[1770049954596,22.3305449,105.23,105.19,13.76719452]
[1770049954905,12.82715107,105.22,105.19,13.76719452]
[1770049955106,4.15095757,105.22,105.19,4.26060273]
[1770049955306,12.82715107,105.22,105.19,13.76717624]
[1770049955504,12.82715107,105.22,105.19,13.76720485]
[1770049956415,8.69273674,105.22,105.19,13.76720485]
[1770049956804,8.69273674,105.22,105.19,4.26060273]
[1770049957698,8.69273674,105.21,105.17,22.46139129]
[1770049957904,8.69273674,105.2,105.17,13.76865455]
[1770049958300,12.84369431,105.21,105.17,13.76865455]
[1770049958709,8.69273674,105.2,105.17,4.26060273]
[1770049959620,18.19860043,105.2,105.17,4.26060273]
[1770049963216,51.65249895,105.26,105.19,4.26060273]
[1770049963526,4.15095757,105.3,105.25,12.95333947]
[1770049963719,12.84369431,105.3,105.26,8.69273674]
[1770049963902,8.69273674,105.29,105.25,12.95333947]
[1770049964098,12.84369431,105.27,105.23,4.26060273]
[1770049964307,28.0147068,105.31,105.21,12.95333947]
[1770049964308,8.69273674,105.25,105.21,12.95333947]
[1770049964508,8.69273674,105.25,105.21,13.76520139]
[1770049964509,12.84369431,105.25,105.21,13.76520139]
[1770049964721,12.84369431,105.25,105.21,22.45793813]
[1770049966223,22.3453851,105.25,105.21,22.45793813]
[1770049966524,18.19337226,105.26,105.22,4.26060273]
[1770049966698,18.19337226,105.26,105.22,12.95333947]
[1770049966904,22.34432983,105.26,105.22,4.26060273]
[1770049967124,8.69273674,105.25,105.22,4.26060273]
[1770049967807,18.19435129,105.25,105.22,4.26060273]
[1770049969327,22.33172242,105.25,105.21,13.85093034]
[1770049970434,12.84369431,105.24,105.21,4.34633168]
[1770049970728,12.84369431,105.22,105.18,22.72453505]
[1770049970910,12.84369431,105.22,105.19,4.38252263]
[1770049971319,33.25458367,105.25,105.17,4.38252263]
[1770049971320,8.69273674,105.2,105.17,4.38252263]
[1770049971830,8.69273674,105.19,105.16,4.38252263]
[1770049973108,22.34896177,105.21,105.17,4.38252263]
[1770049973306,22.34896177,105.21,105.17,13.07525937]
[1770049973506,22.34896177,105.21,105.17,4.38252263]
[1770049973929,8.69273674,105.2,105.17,4.38252263]
[1770049974428,18.1986922,105.2,105.17,4.38252263]
[1770049976206,33.26679972,105.21,105.17,4.38252263]
[1770049976407,18.19753666,105.21,105.18,4.38252263]
[1770049976727,9.50479992,105.21,105.18,4.38252263]
[1770049976926,18.19753666,105.21,105.18,4.38252263]
[1770049978417,8.69273674,105.23,105.2,4.38252263]
[1770049979518,18.19534542,105.24,105.21,4.38252263]
[1770049980230,18.19534542,105.24,105.19,8.69273674]
[1770049980231,22.34630299,105.24,105.2,4.38252263]
[1770049980435,8.69273674,105.23,105.2,4.38252263]
[1770049980609,8.69273674,105.22,105.2,4.38252263]
[1770049980811,8.69273674,105.23,105.2,4.38252263]
[1770049981736,12.84369431,105.23,105.19,13.88873203]
[1770049981928,12.84369431,105.23,105.2,4.38252263]
[1770049982432,12.84369431,105.21,105.17,4.38252263]
[1770049982628,8.69273674,105.2,105.17,4.38252263]
[1770049983223,8.69273674,105.2,105.17,13.89045169]
[1770049983639,18.19858744,105.2,105.17,4.38252263]
[1770049983831,18.19858744,105.2,105.17,13.89091355]
[1770049984036,22.34901354,105.21,105.17,13.89091355]
[1770049984335,22.34901354,105.21,105.17,22.58365029]
[1770049984731,13.6562768,105.21,105.17,22.58365029]
[1770049984939,22.34901354,105.21,105.17,22.58365029]
[1770049985438,22.34901354,105.21,105.17,13.89091355]
[1770049985737,13.6562768,105.21,105.18,4.38252263]
[1770049985942,22.34901354,105.21,105.18,4.38252263]
[1770049986935,8.69273674,105.21,105.18,13.88999392]
[1770049987129,22.3469316,105.23,105.2,4.38252263]
[1770049987324,18.19534972,105.24,105.2,13.07525937]
[1770049987529,18.19534972,105.24,105.21,4.38252263]
[1770049987836,9.50170441,105.25,105.22,4.38252263]
[1770049988141,8.69273674,105.27,105.24,4.38252263]
[1770049989040,27.89477723,105.3,105.26,4.38252263]
[1770049989343,22.55025005,105.31,105.24,33.54163973]
[1770049989525,13.05447567,105.3,105.26,8.69273674]
[1770049990244,8.69273674,105.3,105.26,8.69273674]
[1770049990743,46.289686,105.31,105.26,8.69273674]
[1770049990939,8.69273674,105.3,105.26,8.69273674]
[1770049991130,18.18993443,105.3,105.26,18.1930101]
[1770049991335,18.18993443,105.3,105.26,22.57553273]
[1770049992845,18.18993443,105.3,105.27,4.38252263]
[1770049993040,22.55167336,105.3,105.26,4.38252263]
[1770049993241,13.05447567,105.28,105.25,9.50115288]
[1770049993438,13.05447567,105.29,105.25,22.57641225]
[1770049994526,22.55247076,105.29,105.25,22.57641225]
[1770049996152,33.23205468,105.32,105.26,13.07525937]
[1770049996356,8.69273674,105.3,105.26,13.07525937]
[1770049996852,13.05447567,105.3,105.26,13.07525937]
[1770049997555,22.55166965,105.3,105.26,22.5754976]
[1770049997932,4.36173893,105.28,105.22,54.56024825]
[1770049998240,13.05447567,105.24,105.2,13.07525937]
[1770049998435,4.36173893,105.22,105.18,22.58235484]
[1770049998635,4.36173893,105.22,105.18,4.38252263]
[1770049998943,13.05447567,105.24,105.19,22.58112056]
[1770049999142,18.04,105.26,105.19,4.38252263]
[1770049999143,8.69273674,105.22,105.19,4.38252263]
[1770049999738,22.55789911,105.23,105.19,13.88900716]
[1770050000257,22.55789911,105.23,105.19,4.38252263]
[1770050000958,8.69273674,105.22,105.19,4.38252263]
[1770050001762,22.55789911,105.23,105.19,4.38252263]
[1770050002561,8.69273674,105.22,105.19,4.38252263]
[1770050002736,8.69273674,105.21,105.17,22.36383306]
[1770050002937,13.05447567,105.21,105.17,13.67109632]
[1770050003355,4.36173893,105.21,105.17,13.67109632]
[1770050003743,8.69273674,105.22,105.18,13.67057984]
[1770050003933,9.50445477,105.22,105.18,22.36331658]
[1770050004154,22.55795219,105.23,105.19,4.16310981]
[1770050004352,13.86521545,105.23,105.19,4.16310981]
[1770050004658,22.55795219,105.23,105.19,4.16310981]
[1770050004954,9.50252557,105.24,105.21,4.16310981]
[1770050005166,18.19526231,105.24,105.21,4.16310981]
[1770050006564,13.05447567,105.23,105.19,13.66938313]
[1770050007143,8.69273674,105.22,105.19,4.16310981]
[1770050007369,8.69273674,105.21,105.18,4.16310981]
[1770050007671,8.69273674,105.21,105.18,13.67054904]
[1770050007846,13.05447567,105.22,105.18,13.67054904]
[1770050009263,22.5587478,105.22,105.18,13.67054904]
[1770050010668,8.69273674,105.21,105.18,4.16310981]
[1770050010859,8.69273674,105.21,105.18,13.67058484]
[1770050011170,22.5587478,105.22,105.18,13.67058484]
[1770050011374,9.50427213,105.22,105.19,4.16310981]
[1770050011549,18.1953343,105.24,105.21,4.16310981]
[1770050011757,13.05447567,105.26,105.22,4.16310981]
[1770050012063,8.69273674,105.25,105.22,4.16310981]
[1770050012570,13.05447567,105.25,105.21,12.85584655]
[1770050012947,22.55502448,105.26,105.22,12.85584655]
[1770050013176,22.55502448,105.26,105.22,4.16310981]
[1770050013676,23.74899827,105.27,105.24,4.16310981]
[1770050013677,9.49987259,105.27,105.24,4.16310981]
[1770050014248,9.49987259,105.27,105.23,8.69273674]
[1770050014249,13.05447567,105.26,105.22,4.16310981]
[1770050015268,22.55525624,105.26,105.22,4.16310981]
[1770050016470,22.54818782,105.26,105.22,4.16310981]
[1770050017163,9.50078057,105.26,105.23,4.16310981]
[1770050017560,9.50078057,105.26,105.23,12.84877813]
[1770050017762,46.29890034,105.26,105.22,4.16310981]
[1770050017962,13.04740725,105.25,105.21,4.16310981]
[1770050018284,4.56173893,105.33,105.25,4.16310981]
[1770050018577,0.2,105.33,105.3,4.16310981]
[1770050018779,14.64123121,105.33,105.3,12.84877813]
[1770050018972,0.2,105.33,105.3,12.84877813]
[1770050019678,0.2,105.33,105.32,4.16310981]
[1770050019875,9.6940059,105.33,105.29,4.44743295]
[1770050020073,0.2,105.33,105.3,12.84877813]
[1770050020269,0.2,105.33,105.3,4.16310981]
[1770050020574,0.2,105.33,105.3,22.34510508]
[1770050020775,0.2,105.33,105.31,12.84877813]
[1770050021188,0.2,105.33,105.32,8.68566832]
[1770050021381,13.36294791,105.38,105.33,12.84877813]
[1770050021577,0.2,105.38,105.36,8.68566832]
[1770050021783,0.2,105.38,105.37,8.68566832]
[1770050022073,1e-08,105.38,105.37,8.68566832]
[1770050022278,4.47727959,105.42,105.38,4.16310981]
[1770050022581,4.47727959,105.4,105.37,9.48973581]
[1770050022775,8.68566832,105.41,105.37,22.33851394]
[1770050023082,4.47727959,105.42,105.38,13.65198701]
[1770050023272,13.96373831,105.42,105.38,9.4888772]
[1770050023583,17.10205913,105.5,105.41,3.60797361]
[1770050023761,8.68566832,105.49,105.45,8.68566832]
[1770050023963,13.16294791,105.49,105.44,8.68566832]
[1770050024162,1e-08,105.5,105.46,8.68566832]
[1770050024459,13.26294791,105.56,105.5,33.17535544]
[1770050024779,4.57727959,105.56,105.53,8.68566832]
[1770050024980,4.57727959,105.56,105.5,33.17535544]
[1770050025176,4.47727959,105.54,105.5,9.47867298]
[1770050025375,4.47727959,105.53,105.49,8.68566832]
[1770050025776,13.16294791,105.53,105.48,22.32918036]
[1770050025976,4.47727959,105.52,105.48,22.32918036]
[1770050026171,4.47727959,105.52,105.49,18.16498423]
[1770050026885,13.16294791,105.55,105.5,12.84877813]
[1770050027275,4.47727959,105.55,105.5,12.84877813]
[1770050027460,4.47727959,105.54,105.5,12.84877813]
[1770050027663,13.16294791,105.54,105.5,12.84877813]
[1770050027876,8.68566832,105.55,105.51,4.16310981]
[1770050028078,8.68566832,105.55,105.51,12.84877813]
[1770050028282,8.78566832,105.56,105.52,8.68566832]
[1770050028563,13.07196877,105.55,105.51,8.68566832]
[1770050029085,13.07196877,105.55,105.51,22.62897036]
[1770050029382,4.38630045,105.55,105.51,22.62897036]
[1770050029574,13.07196877,105.54,105.5,8.68566832]
[1770050029775,13.07196877,105.54,105.5,22.62978491]
[1770050030082,4.05326087,105.52,105.48,12.85133797]
[1770050030790,4.05326087,105.52,105.49,8.68566832]
[1770050031584,4.05326087,105.54,105.5,12.85133797]
[1770050031882,4.05326087,105.51,105.47,8.68566832]
[1770050032066,4.05326087,105.51,105.47,12.85133797]
[1770050033187,4.05326087,105.51,105.47,22.33258847]
[1770050033389,0.1,105.56,105.52,4.44999279]
[1770050033580,0.3290234,105.57,105.54,12.85133797]
[1770050034170,18.48731015,105.57,105.54,4.16566965]
[1770050034582,9.01469172,105.57,105.54,4.16566965]
[1770050035067,0.3290234,105.57,105.54,4.16566965]
[1770050035686,0.3290234,105.57,105.54,12.85133797]
[1770050036472,18.48754418,105.57,105.53,8.68566832]
[1770050036669,18.48754418,105.57,105.49,60.35879678]
[1770050036670,8.68566832,105.55,105.51,8.68566832]
[1770050036992,9.80187586,105.57,105.54,8.68566832]
[1770050037203,13.85513673,105.57,105.53,8.68566832]
[1770050037369,0.3290234,105.57,105.51,37.447482]
[1770050037570,0.1,105.6,105.56,8.68566832]
[1770050037779,0.1,105.6,105.57,8.68566832]
[1770050038191,12.73892919,105.58,105.53,8.68566832]
[1770050038398,8.68566832,105.57,105.53,8.68566832]
[1770050038573,12.73892919,105.55,105.51,8.68566832]
[1770050038891,12.73892919,105.55,105.5,22.32974359]
[1770050039397,22.21360842,105.55,105.51,8.68566832]
[1770050039796,4.05326087,105.55,105.51,8.68566832]
[1770050040095,22.21348924,105.55,105.51,8.68566832]
[1770050040481,22.21348924,105.55,105.48,4.16566965]
[1770050040482,8.68566832,105.52,105.48,4.16566965]
[1770050040681,4.05326087,105.49,105.45,8.68566832]
[1770050040904,12.73892919,105.49,105.45,8.68566832]
[1770050041203,4.05326087,105.49,105.45,8.68566832]
[1770050041390,12.73892919,105.49,105.45,8.68566832]
[1770050041700,4.05326087,105.49,105.45,8.68566832]
[1770050041885,18.16512541,105.5,105.46,8.68566832]
[1770050042277,9.47945709,105.5,105.46,8.68566832]
[1770050042594,4.05326087,105.53,105.47,12.85133797]
[1770050042793,9.4741897,105.55,105.51,12.85133797]
[1770050043000,22.21255624,105.56,105.52,8.68566832]
[1770050043202,13.52688792,105.56,105.53,8.68566832]
[1770050044394,4.05326087,105.56,105.53,8.68566832]
[1770050044695,9.47276177,105.57,105.54,8.68566832]
[1770050044902,12.73892919,105.56,105.52,8.68566832]
[1770050045106,12.73892919,105.56,105.5,4.16566965]
[1770050045107,12.73892919,105.55,105.51,8.68566832]
[1770050045280,45.89266093,105.57,105.53,8.68566832]
[1770050045479,37.20699261,105.57,105.53,8.68566832]
[1770050045688,33.15373174,105.57,105.54,8.68566832]
[1770050045999,45.89266093,105.57,105.53,8.68566832]
[1770050046698,9.47166723,105.58,105.55,8.68566832]
[1770050046899,9.47166723,105.58,105.54,4.16566965]
[1770050046900,0.1,105.61,105.57,13.13566111]
[1770050047196,0.1,105.61,105.58,8.68566832]
[1770050047605,9.56895198,105.61,105.58,8.68566832]
[1770050047784,0.1,105.61,105.58,8.68566832]
[1770050047979,6.09040443,105.65,105.6,12.85133797]
[1770050048203,1e-08,105.68,105.65,5.36086188]
[1770050048394,4.5,105.71,105.69,4.93977191]
[1770050048593,4.93251315,105.73,105.7,8.96999146]
[1770050048790,10.50479717,105.75,105.71,8.68566832]
[1770050049099,10.50479717,105.75,105.69,4.93977191]
[1770050049100,13.18566832,105.73,105.69,4.93977191]
[1770050049283,13.18566832,105.72,105.69,4.93977191]
[1770050049483,13.18566832,105.72,105.63,8.68566832]
[1770050049484,13.18566832,105.71,105.67,8.68566832]
[1770050049682,13.18566832,105.7,105.66,8.68566832]
[1770050049904,4.5,105.7,105.66,8.68566832]
[1770050050103,4.5,105.7,105.67,8.68566832]
[1770050050803,13.18566832,105.72,105.68,8.68566832]
[1770050050989,13.18566832,105.72,105.63,8.68566832]
[1770050050990,8.68566832,105.7,105.65,9.46449189]
[1770050051185,8.68566832,105.7,105.64,0.28432314]
[1770050051186,4.5,105.69,105.64,9.75037114]
[1770050051389,13.18566832,105.69,105.65,8.68566832]
[1770050051697,13.18566832,105.66,105.62,8.68566832]
[1770050051902,4.5,105.65,105.62,8.68566832]
[1770050052085,4.5,105.65,105.6,9.46946653]
[1770050052086,13.18566832,105.65,105.61,8.68566832]
[1770050052291,4.5,105.65,105.61,8.68566832]
[1770050052482,13.18566832,105.66,105.62,8.68566832]
[1770050052889,22.65088365,105.65,105.61,8.68566832]
[1770050053202,46.31392198,105.65,105.6,8.68566832]
[1770050053501,22.65088365,105.65,105.6,8.68566832]
[1770050054079,9.46451134,105.66,105.62,8.68566832]
[1770050054406,9.46451134,105.66,105.59,5.36086188]
[1770050054407,9.46451134,105.66,105.63,8.68566832]
[1770050057005,8.68566832,105.67,105.63,0.28432314]
[1770050057191,4.5,105.72,105.66,8.96999146]
[1770050057387,4.5,105.74,105.71,0.28432314]
[1770050057592,4.5,105.74,105.7,8.68566832]
[1770050057805,18.14202409,105.75,105.7,8.68566832]
[1770050057987,4.5,105.74,105.68,8.96999146]
[1770050058309,13.18566832,105.74,105.69,8.68566832]
[1770050058508,4.5,105.73,105.69,8.68566832]
[1770050058724,13.18566832,105.71,105.66,8.68566832]
[1770050059008,4.5,105.71,105.67,8.68566832]
[1770050059207,13.96025302,105.71,105.67,8.68566832]
[1770050059691,22.64592134,105.71,105.66,9.46399197]
[1770050059895,22.64592134,105.71,105.66,8.68566832]
[1770050060097,22.64592134,105.71,105.66,18.149766]
[1770050060404,22.64421646,105.73,105.68,8.68566832]
[1770050061405,9.45755182,105.74,105.7,8.68566832]
[1770050061606,15.65781869,105.76,105.71,8.96999146]
[1770050061805,4.5,105.75,105.71,0.28432314]
[1770050061985,4.5,105.75,105.71,8.96999146]
[1770050062186,13.18566832,105.75,105.71,0.28432314]
[1770050062381,4.5,105.73,105.7,8.68566832]
[1770050062587,8.68566832,105.74,105.69,8.96999146]
[1770050063195,22.6427325,105.75,105.7,18.14640625]
[1770050063793,8.68566832,105.74,105.7,18.14640625]
[1770050064400,18.14322413,105.74,105.7,9.46073793]
[1770050065207,8.68566832,105.74,105.7,18.14640625]
[1770050065406,18.14293912,105.74,105.7,18.14640625]
[1770050065809,9.4572708,105.74,105.7,18.14640625]
[1770050066316,18.14293912,105.74,105.7,18.14640625]
[1770050066610,9.4572708,105.74,105.71,8.68566832]
[1770050067400,13.18566832,105.73,105.69,18.43133389]
[1770050067600,9.4572708,105.74,105.69,18.43133389]
[1770050067601,18.14337335,105.74,105.7,8.68566832]
[1770050068216,22.64337335,105.74,105.69,18.43125932]
[1770050068522,22.64337335,105.74,105.7,8.68566832]
[1770050068723,22.64337335,105.74,105.69,18.43125932]
[1770050069510,46.28627102,105.74,105.69,8.96999146]
[1770050069717,4.5,105.71,105.66,9.46383584]
[1770050069917,13.18566832,105.71,105.67,8.68566832]
[1770050070215,13.18566832,105.71,105.66,18.14950416]
[1770050070601,13.18566832,105.71,105.66,8.68566832]
[1770050070800,4.5,105.69,105.61,47.34400151]
[1770050071005,13.18566832,105.68,105.63,8.68566832]
[1770050071206,4.5,105.67,105.63,8.68566832]
[1770050071509,13.18566832,105.68,105.63,8.68566832]
[1770050071822,22.64908724,105.68,105.63,18.15258676]
[1770050072208,22.64908724,105.68,105.63,9.46691844]
[1770050072408,22.64908724,105.68,105.64,8.68566832]
[1770050072631,4.5,105.7,105.65,8.68566832]
[1770050072805,4.5,105.7,105.63,33.13443713]
[1770050072806,13.18566832,105.69,105.64,8.68566832]
[1770050074022,9.46252838,105.68,105.64,8.68566832]
[1770050074232,2.47215037,105.76,105.68,5.64518502]
[1770050074412,0.13032144,105.76,105.75,8.96999146]
[1770050075206,0.13032144,105.76,105.75,0.28432314]
[1770050075404,0.3290234,105.78,105.75,0.28432314]
[1770050076233,9.78267209,105.78,105.75,8.96999146]
[1770050076401,9.78321252,105.78,105.74,0.28432314]
[1770050076605,9.78321252,105.78,105.74,8.96999146]
[1770050077126,0.3290234,105.78,105.76,8.82782989]
[1770050077327,0.3290234,105.78,105.77,8.68566832]
[1770050078525,10.58077109,105.85,105.78,0.28432314]
[1770050078731,0.1,105.85,105.81,8.59521675]
[1770050078935,0.1,105.85,105.84,8.59521675]
[1770050079434,0.1,105.85,105.81,0.14216157]
[1770050079435,4.5,105.88,105.78,5.36086188]
[1770050079607,9.44528427,105.88,105.85,8.59521675]
[1770050079809,13.94409586,105.89,105.85,8.59521675]
[1770050080222,8.59521675,105.88,105.84,8.59521675]
[1770050080431,46.14871859,105.89,105.84,8.59521675]
[1770050081510,46.14871859,105.89,105.84,18.0434045]
[1770050081511,37.55350184,105.89,105.84,18.0434045]
[1770050081725,9.44303401,105.9,105.86,8.59521675]
[1770050081926,39.37521675,105.93,105.88,8.59521675]
[1770050082227,8.59521675,105.92,105.88,8.59521675]
[1770050082616,8.59521675,105.92,105.86,9.44588047]
[1770050082617,8.59521675,105.91,105.87,8.59521675]
[1770050082927,13.09521675,105.91,105.86,8.59521675]
[1770050083319,8.59521675,105.9,105.86,8.59521675]
[1770050083633,13.09521675,105.89,105.84,8.59521675]
[1770050083810,8.59521675,105.88,105.84,8.59521675]
[1770050084318,8.59521675,105.88,105.8,8.59521675]
[1770050084319,4.5,105.84,105.8,8.59521675]
[1770050084632,8.59521675,105.81,105.77,8.59521675]
[1770050085132,8.59521675,105.81,105.76,9.45499663]
[1770050085133,4.5,105.81,105.76,8.59521675]
[1770050085313,8.59521675,105.8,105.76,8.59521675]
[1770050085629,8.59521675,105.84,105.79,8.59521675]
[1770050085933,8.59521675,105.84,105.8,8.59521675]
[1770050086222,18.04398425,105.84,105.8,8.59521675]
[1770050086613,18.04398425,105.84,105.79,8.59521675]
[1770050086808,4.5,105.83,105.77,9.45407185]
[1770050087012,13.09521675,105.83,105.78,8.59521675]
[1770050087235,8.59521675,105.82,105.78,8.59521675]
[1770050087929,18.04589701,105.82,105.78,8.59521675]
[1770050088123,22.54589701,105.82,105.77,8.59521675]
[1770050088327,22.54589701,105.82,105.77,18.04953371]
[1770050088735,22.54589701,105.82,105.78,8.59521675]
[1770050089112,13.95068026,105.82,105.78,8.59521675]
[1770050089315,4.5,105.88,105.81,8.59521675]
[1770050089520,4.5,105.88,105.84,8.59521675]
[1770050089731,9.44397018,105.89,105.86,8.59521675]
[1770050090115,13.94397018,105.89,105.83,9.44901725]
[1770050090320,13.09521675,105.88,105.84,8.59521675]
[1770050090529,8.59521675,105.87,105.83,8.59521675]
[1770050090831,13.09521675,105.87,105.83,8.59521675]
[1770050091222,13.09521675,105.87,105.81,9.45021055]
[1770050091223,13.09521675,105.87,105.82,18.04521366]
[1770050092337,9.44533855,105.88,105.84,8.59521675]
[1770050093420,8.59521675,105.87,105.83,8.59521675]
[1770050093637,13.09521675,105.87,105.82,8.59521675]
[1770050094135,8.59521675,105.88,105.84,8.59521675]
[1770050094339,9.4452729,105.88,105.85,8.59521675]
[1770050094939,9.4452729,105.88,105.84,8.59521675]
[1770050095524,13.9452729,105.88,105.83,9.44909683]
[1770050095725,13.9452729,105.88,105.84,8.59521675]
[1770050098764,4.5,105.87,105.84,8.59521675]
[1770050099052,13.09521675,105.86,105.82,8.59521675]
[1770050099746,4.5,105.84,105.8,8.59521675]
[1770050099947,13.09521675,105.84,105.8,8.59521675]
[1770050100846,13.09521675,105.82,105.77,8.59521675]
[1770050101047,13.09521675,105.8,105.73,23.64341433]
[1770050101254,8.59521675,105.79,105.75,8.59521675]
[1770050101450,8.59521675,105.79,105.74,9.45668475]
[1770050101451,13.09521675,105.77,105.72,8.59521675]
[1770050101631,8.59521675,105.75,105.65,24.84]
[1770050101833,13.09521675,105.75,105.67,9.46342386]
[1770050102054,4.5,105.75,105.71,8.59521675]
[1770050102260,8.59521675,105.72,105.67,9.46342386]
[1770050102561,8.59521675,105.72,105.58,48.43439609]
[1770050102562,13.09521675,105.7,105.64,23.86352951]
[1770050102866,4.5,105.72,105.67,8.59521675]
[1770050103039,13.09521675,105.72,105.68,8.59521675]
[1770050103238,4.5,105.72,105.69,8.59521675]
[1770050103452,48.81287652,105.74,105.7,8.59521675]
[1770050103855,13.09521675,105.73,105.69,8.59521675]
[1770050104035,13.09521675,105.72,105.66,33.12491943]
[1770050104235,13.09521675,105.72,105.68,8.59521675]
[1770050106351,18.05097192,105.76,105.71,8.59521675]
[1770050106558,4.5,105.76,105.72,8.59521675]
[1770050106950,13.09521675,105.75,105.7,8.59521675]
[1770050107145,4.5,105.75,105.71,18.05505971]
[1770050107340,13.09521675,105.75,105.71,18.05505971]